bitfinex/quotes_SOLUSD_20251226
["timestamp","ask_amount","ask_price","bid_price","bid_amount"]
[1766715782622,9.49683205,123.69,123.66,10.43767296]
[1766715782922,9.49683205,123.68,123.63,0.67]
[1766715783127,10.17683205,123.68,123.62,17.58564747]
[1766715783306,10.17683205,123.68,123.62,28.69332043]
[1766715783928,0.68,123.68,123.62,28.69332043]
[1766715784149,10.17683205,123.71,123.65,9.49683205]
[1766715784305,10.17683205,123.7,123.64,9.49683205]
[1766715784823,10.17683205,123.7,123.63,0.67]
[1766715785140,10.17683205,123.7,123.64,8.08799741]
[1766715785436,10.17683205,123.7,123.64,17.58482946]
[1766715785807,0.68,123.7,123.65,10.43767296]
[1766715786006,10.17683205,123.7,123.64,8.08799741]
[1766715786239,10.17683205,123.7,123.64,48.24249594]
[1766715786441,0.68,123.7,123.64,18.52567037]
[1766715786605,9.49683205,123.69,123.64,18.52567037]
[1766715786807,10.17683205,123.66,123.53,15.0]
[1766715787024,10.17683205,123.66,123.62,8.08910171]
[1766715787213,9.49683205,123.68,123.62,9.49683205]
[1766715787528,9.49683205,123.65,123.6,8.7601601]
[1766715787828,9.49683205,123.65,123.61,8.08995365]
[1766715788029,0.68,123.68,123.61,8.75995365]
[1766715788325,0.68,123.68,123.63,20.60450501]
[1766715788833,10.17683205,123.72,123.66,10.16683205]
[1766715789032,9.49683205,123.69,123.63,10.16683205]
[1766715789222,10.17683205,123.69,123.65,18.52484338]
[1766715789416,0.68,123.69,123.65,18.52484338]
[1766715789621,10.17683205,123.72,123.66,10.16683205]
[1766715789817,9.49683205,123.71,123.65,18.52484338]
[1766715790021,0.68,123.69,123.65,18.52484338]
[1766715790332,10.17683205,123.7,123.65,18.52484338]
[1766715791240,10.17683205,123.69,123.65,10.43767296]
[1766715791447,10.17683205,123.68,123.63,8.08847398]
[1766715792044,9.49683205,123.69,123.65,8.08721557]
[1766715792345,0.68,123.67,123.62,54.91654965]
[1766715792533,0.68,123.67,123.63,8.08821901]
[1766715793045,9.49683205,123.68,123.64,8.0878677]
[1766715793234,9.49683205,123.68,123.63,8.75865162]
[1766715793551,9.49683205,123.69,123.64,0.67]
[1766715793937,9.49683205,123.7,123.65,0.68]
[1766715794129,9.49683205,123.69,123.65,0.68]
[1766715795349,10.18683205,123.7,123.66,18.52429685]
[1766715795736,10.18683205,123.7,123.66,10.43767296]
[1766715795946,6.50574016,123.7,123.66,10.43767296]
[1766715796140,5.81574016,123.68,123.63,16.93341312]
[1766715796341,5.81574016,123.66,123.62,22.84889726]
[1766715796545,8.0841442,123.7,123.52,15.0]
[1766715796546,52.73433013,123.7,123.52,15.0]
[1766715796729,52.73433013,123.7,123.5,24.24777327]
[1766715796730,6.50574016,123.61,123.54,20.23553084]
[1766715796924,5.81574016,123.59,123.55,0.68]
[1766715797151,5.81574016,123.59,123.54,8.09437405]
[1766715797454,5.81574016,123.62,123.56,6.49574016]
[1766715797656,5.81574016,123.61,123.56,0.68]
[1766715797833,6.50574016,123.61,123.56,0.68]
[1766715798148,0.69,123.61,123.56,0.68]
[1766715798342,5.81574016,123.62,123.57,0.68]
[1766715798758,6.50574016,123.62,123.57,0.68]
[1766715798954,5.81574016,123.61,123.57,0.68]
[1766715799449,0.69,123.62,123.58,8.09192425]
[1766715799627,6.50574016,123.62,123.58,8.09192425]
[1766715799826,15.43,123.64,123.59,0.68]
[1766715800025,21.24574016,123.64,123.59,0.68]
[1766715800225,10.43767296,123.7,123.59,0.68]
[1766715800226,14.74,123.71,123.62,0.68]
[1766715800553,14.74,123.71,123.58,28.32173489]
[1766715800554,6.50574016,123.63,123.57,19.21003385]
[1766715800734,6.50574016,123.63,123.57,18.53003385]
[1766715800934,6.50574016,123.64,123.58,0.68]
[1766715801147,5.81574016,123.66,123.57,18.53003385]
[1766715801343,0.69,123.61,123.55,8.77385444]
[1766715801540,5.81574016,123.59,123.55,19.2115274]
[1766715802151,0.69,123.61,123.55,18.5315274]
[1766715802449,5.81574016,123.56,123.52,0.68]
[1766715802651,38.74566389,123.64,123.48,0.2]
[1766715802652,5.81574016,123.53,123.49,8.77774714]
[1766715802951,5.81574016,123.53,123.49,19.2154201]
[1766715803156,5.81574016,123.53,123.49,8.77774714]
[1766715803354,5.81574016,123.54,123.49,8.09774714]
[1766715803656,0.69,123.64,123.54,5.81574016]
[1766715803840,0.69,123.62,123.57,10.43767296]
[1766715804252,6.50574016,123.64,123.57,11.09767296]
[1766715804442,6.50574016,123.64,123.58,5.81574016]
[1766715804860,6.50574016,123.64,123.57,16.91341312]
[1766715805032,6.50574016,123.64,123.58,5.81574016]
[1766715805237,6.50574016,123.63,123.58,8.09181295]
[1766715805435,0.69,123.67,123.61,16.91341312]
[1766715805669,0.69,123.67,123.62,5.81574016]
[1766715805838,6.50574016,123.66,123.61,10.43767296]
[1766715806154,6.50574016,123.66,123.62,10.43767296]
[1766715806357,0.69,123.66,123.62,10.43767296]
[1766715806558,5.81574016,123.69,123.63,5.81574016]
[1766715806765,0.69,123.68,123.64,5.81574016]
[1766715807144,14.74,123.71,123.65,13.90308346]
[1766715807343,0.69,123.7,123.65,8.0873433]
[1766715807535,0.69,123.7,123.65,13.90308346]
[1766715807865,0.69,123.69,123.65,8.0873433]
[1766715808034,5.81574016,123.68,123.63,8.08814492]
[1766715808235,0.69,123.67,123.62,24.34267742]
[1766715808452,0.69,123.66,123.62,24.34267742]
[1766715808643,0.69,123.66,123.63,8.08838496]
[1766715809043,0.69,123.66,123.62,10.43767296]
[1766715809332,0.69,123.66,123.62,24.34250007]
[1766715809664,24.44,123.72,123.62,24.34250007]
[1766715809665,0.69,123.76,123.65,0.66]
[1766715809952,0.69,123.76,123.62,79.19655443]
[1766715809953,0.69,123.68,123.66,10.43767296]
[1766715810652,0.5,123.72,123.62,8.08908695]
[1766715810865,6.31574016,123.65,123.61,8.08987857]
[1766715811044,0.5,123.65,123.54,0.68]
[1766715811241,39.18,123.66,123.57,0.68]
[1766715811242,5.81574016,123.62,123.57,0.68]
[1766715811555,5.81574016,123.63,123.57,6.49574016]
[1766715811769,5.81574016,123.65,123.59,5.81574016]
[1766715812061,0.5,123.66,123.6,0.72]
[1766715812256,6.31574016,123.66,123.61,5.81574016]
[1766715812553,6.31574016,123.68,123.63,5.81574016]
[1766715812755,6.31574016,123.68,123.61,0.72]
[1766715812965,6.31574016,123.67,123.62,5.81574016]
[1766715813167,6.31574016,123.67,123.61,0.72]
[1766715813372,6.31574016,123.67,123.62,5.81574016]
[1766715813576,6.31574016,123.67,123.63,5.81574016]
[1766715813943,0.5,123.68,123.64,5.81574016]
[1766715814449,6.31574016,123.68,123.62,0.72]
[1766715814650,5.81574016,123.67,123.62,6.53574016]
[1766715815457,5.81574016,123.66,123.61,13.90521568]
[1766715815756,6.31574016,123.62,123.56,5.81574016]
[1766715815965,0.5,123.62,123.55,5.81574016]
[1766715816278,6.31574016,123.63,123.56,0.72]
[1766715816452,5.81574016,123.62,123.56,0.72]
[1766715816868,0.5,123.63,123.58,5.81574016]
[1766715817051,0.5,123.66,123.6,5.81574016]
[1766715817251,24.44,123.74,123.66,0.72]
[1766715817460,0.5,123.77,123.72,5.81574016]
[1766715817667,0.5,123.77,123.71,18.5210074]
[1766715817873,0.5,123.76,123.69,11.15767296]
[1766715818271,3.74329601,123.78,123.7,0.72]
[1766715818574,3.74329601,123.78,123.69,30.6479862]
[1766715818575,3.74329601,123.78,123.73,5.81574016]
[1766715818780,3.74329601,123.78,123.74,5.81574016]
[1766715819075,0.1,123.8,123.77,5.81574016]
[1766715819375,0.1,123.8,123.77,6.53574016]
[1766715819585,0.1,123.8,123.77,14.61498468]
[1766715819757,0.1,123.8,123.77,0.72]
[1766715819957,0.1,123.8,123.77,6.53574016]
[1766715820275,0.1,123.8,123.77,0.72]
[1766715820461,0.1,123.8,123.77,6.53574016]
[1766715820657,0.5,123.83,123.78,5.81574016]
[1766715820864,15.24,123.86,123.79,5.81574016]
[1766715821073,5.81574016,123.85,123.79,5.81574016]
[1766715821473,23.31427457,123.86,123.79,5.81574016]
[1766715821658,4.06797286,123.88,123.82,16.25341312]
[1766715821864,9.88371302,123.88,123.82,16.25341312]
[1766715822179,5.81574016,123.87,123.81,6.53574016]
[1766715822982,5.81574016,123.86,123.81,0.72]
[1766715823278,5.81574016,123.87,123.82,16.25341312]
[1766715823479,3.56797286,123.88,123.83,14.61132765]
[1766715823653,3.56797286,123.88,123.83,5.81574016]
[1766715823858,9.38371302,123.88,123.82,25.03917133]
[1766715824057,5.81574016,123.87,123.82,19.22343117]
[1766715824475,9.38371302,123.88,123.83,6.52574016]
[1766715824675,9.38371302,123.88,123.83,0.71]
[1766715824978,11.64030871,123.88,123.82,10.43767296]
[1766715825183,5.81574016,123.86,123.81,0.71]
[1766715825386,5.81574016,123.86,123.81,6.52574016]
[1766715825575,5.81574016,123.86,123.79,14.76]
[1766715825576,3.56797286,123.88,123.79,0.71]
[1766715825754,5.81574016,123.87,123.81,10.43767296]
[1766715825957,12.14041392,123.88,123.81,16.25341312]
[1766715826153,5.81574016,123.87,123.81,13.89261915]
[1766715826461,12.14045251,123.88,123.81,0.71]
[1766715826783,5.81574016,123.87,123.81,0.71]
[1766715827076,5.81574016,123.85,123.79,0.71]
[1766715827394,31.82127265,123.88,123.77,0.71]
[1766715827676,5.81574016,123.87,123.81,0.67]
[1766715827882,9.38371302,123.88,123.82,0.67]
[1766715828265,5.81574016,123.85,123.82,0.67]
[1766715828663,5.81574016,123.86,123.82,0.67]
[1766715828890,12.14033913,123.88,123.82,0.67]
[1766715829074,5.81574016,123.86,123.82,0.67]
[1766715829479,5.81574016,123.84,123.79,8.74778099]
[1766715829674,5.81574016,123.83,123.79,0.67]
[1766715829873,5.81574016,123.84,123.79,0.67]
[1766715830599,5.81574016,123.84,123.79,6.48574016]
[1766715830891,5.81574016,123.84,123.79,0.67]
[1766715832077,5.81574016,123.83,123.78,10.43767296]
[1766715832393,8.07439578,123.85,123.79,6.48574016]
[1766715832597,5.81574016,123.84,123.79,0.67]
[1766715832771,5.81574016,123.83,123.79,0.67]
[1766715833176,5.81574016,123.83,123.78,10.43767296]
[1766715833423,5.81574016,123.81,123.78,10.43767296]
[1766715833710,5.81574016,123.81,123.77,0.67]
[1766715834399,8.07578241,123.83,123.77,8.74942894]
[1766715834601,5.81574016,123.82,123.77,14.5651691]
[1766715834977,5.81574016,123.82,123.77,8.74942894]
[1766715836097,8.57508939,123.84,123.77,8.74942894]
[1766715836281,5.81574016,123.8,123.75,0.67]
[1766715836592,0.5,123.82,123.77,10.43767296]
[1766715836800,5.81574016,123.81,123.77,10.43767296]
[1766715837298,0.5,123.82,123.78,0.67]
[1766715837299,5.81574016,123.82,123.78,0.67]
[1766715838032,5.81574016,123.82,123.77,10.43767296]
[1766715838432,6.31574016,123.83,123.78,5.81574016]
[1766715838595,6.31574016,123.83,123.77,25.00228239]
[1766715838900,5.81574016,123.82,123.77,24.33228239]
[1766715839086,5.81574016,123.82,123.77,25.00228239]
[1766715839290,5.81574016,123.81,123.77,11.10767296]
[1766715839880,5.81574016,123.81,123.77,19.18713579]
[1766715840081,0.5,123.83,123.77,25.00287595]
[1766715840391,14.72,123.87,123.77,16.25341312]
[1766715840392,20.18244934,123.87,123.77,16.25341312]
[1766715840596,5.81574016,123.84,123.78,16.92341312]
[1766715840783,5.81574016,123.83,123.78,11.10767296]
[1766715840980,28.25542907,123.87,123.78,18.51632871]
[1766715841182,0.5,123.89,123.82,5.81574016]
[1766715841385,9.38371302,123.88,123.83,0.67]
[1766715841586,3.56797286,123.88,123.85,0.67]
[1766715841897,20.16999015,123.95,123.84,5.81574016]
[1766715841898,3.50828839,123.96,123.91,0.67]
[1766715842206,3.50828839,123.96,123.93,0.67]
[1766715842404,3.50828839,123.96,123.93,6.48574016]
[1766715842587,5.81574016,123.99,123.94,5.81574016]
[1766715842787,0.1,124.01,123.95,5.81574016]
[1766715843100,5.81574016,124.0,123.95,0.67]
[1766715843292,0.1,124.01,123.96,5.81574016]
[1766715843492,0.1,124.01,123.95,6.48574016]
[1766715843493,5.81574016,124.0,123.95,6.48574016]
[1766715843691,5.81574016,124.0,123.95,0.67]
[1766715844001,8.16395043,124.01,123.94,0.67]
[1766715844002,0.1,124.01,123.94,0.67]
[1766715844192,8.66394577,124.01,123.94,0.67]
[1766715844391,5.81574016,124.0,123.94,8.73833315]
[1766715844699,5.81574016,123.99,123.94,6.48574016]
[1766715844896,0.5,124.0,123.94,0.67]
[1766715845098,0.5,124.0,123.93,13.88440516]
[1766715845404,5.81574016,123.99,123.94,14.55415614]
[1766715845805,5.81574016,123.99,123.94,6.48574016]
[1766715846210,0.5,124.0,123.94,6.48574016]
[1766715846507,0.5,124.0,123.95,6.48574016]
[1766715846508,5.81574016,124.0,123.95,6.48574016]
[1766715846686,5.81574016,124.0,123.95,5.81574016]
[1766715846887,5.81574016,124.0,123.96,0.67]
[1766715847100,0.1,124.01,123.96,0.67]
[1766715847312,5.81574016,123.99,123.96,0.67]
[1766715847701,5.81574016,123.99,123.94,16.25341312]
[1766715847904,5.81574016,123.96,123.91,14.55611381]
[1766715848103,0.5,124.0,123.93,0.67]
[1766715848622,0.5,124.0,123.86,64.52201823]
[1766715848623,6.31574016,123.94,123.81,0.67]
[1766715848820,5.81574016,123.91,123.87,0.67]
[1766715849005,5.81574016,123.93,123.89,0.67]
[1766715849321,15.22,123.98,123.91,0.67]
[1766715849513,5.81574016,123.96,123.91,0.67]
[1766715849713,5.81574016,123.96,123.92,0.67]
[1766715850015,5.81574016,123.96,123.93,0.67]
[1766715850224,5.81574016,123.95,123.91,6.48574016]
[1766715850513,5.81574016,123.96,123.92,0.67]
[1766715850907,0.1,124.01,123.94,0.67]
[1766715851089,5.81574016,123.99,123.96,0.67]
[1766715851293,0.1,124.01,123.95,0.67]
[1766715851491,0.1,124.01,123.97,6.48574016]
[1766715852113,5.91574016,124.01,123.97,0.67]
[1766715852417,5.73508199,123.99,123.95,8.73755931]
[1766715852714,5.81574016,124.0,123.95,14.55329947]
[1766715853012,5.81574016,123.99,123.96,10.43767296]
[1766715853215,8.84391574,124.01,123.96,10.43767296]
[1766715853216,5.81574016,123.97,123.96,10.43767296]
[1766715853417,5.81574016,123.97,123.92,0.67]
[1766715853587,5.81574016,123.95,123.92,0.67]
[1766715853793,0.58,123.99,123.92,8.73957619]
[1766715853992,43.62358028,124.01,123.94,0.66]
[1766715854207,43.62358028,124.01,123.94,13.88413346]
[1766715854395,5.81574016,123.99,123.94,14.54413346]
[1766715854808,14.82,124.01,123.95,0.66]
[1766715854997,5.91574016,124.01,123.97,5.81574016]
[1766715855194,5.81574016,124.0,123.95,0.66]
[1766715855415,5.81574016,124.0,123.96,6.47574016]
[1766715855614,0.1,124.01,123.96,6.47574016]
[1766715855917,0.1,124.01,123.96,0.66]
[1766715856122,9.50371743,124.01,123.96,0.66]
[1766715856418,9.40371743,124.0,123.96,0.66]
[1766715856614,8.1642038,124.01,123.94,20.50139039]
[1766715856914,9.40371743,123.99,123.94,20.50139039]
[1766715857115,8.1642038,124.01,123.94,20.50139039]
[1766715857317,9.40371743,123.99,123.94,20.50139039]
[1766715857721,8.1642038,124.01,123.9,8.07084953]
[1766715857722,0.58,124.0,123.9,8.07084953]
[1766715857904,0.58,123.98,123.91,18.13394914]
[1766715858218,9.40371743,123.97,123.92,18.13300389]
[1766715858423,9.40371743,123.98,123.93,10.06371743]
[1766715858609,8.06568176,123.99,123.93,0.66]
[1766715859012,9.40371743,123.97,123.93,18.13267006]
[1766715859338,9.40371743,123.97,123.93,8.72895263]
[1766715859523,9.40371743,123.95,123.91,10.43767296]
[1766715859719,9.40371743,123.95,123.9,10.06371743]
[1766715860106,9.40371743,123.96,123.91,18.13346651]
[1766715860305,9.40371743,123.96,123.92,8.06954649]
[1766715860499,0.58,123.98,123.92,9.40371743]
[1766715860701,8.06553679,123.99,123.93,0.66]
[1766715860901,9.40371743,123.95,123.9,0.66]
[1766715861123,9.40371743,123.93,123.87,10.06371743]
[1766715861424,0.58,123.98,123.89,8.73167037]
[1766715861607,0.58,123.97,123.91,9.40371743]
[1766715861799,9.98371743,123.97,123.91,10.06371743]
[1766715862005,0.58,123.97,123.91,10.06371743]
[1766715862203,9.40371743,123.96,123.91,10.06371743]
[1766715862503,9.40371743,123.96,123.91,0.66]
[1766715862704,8.06776926,123.95,123.91,0.66]
[1766715862902,17.47148669,123.95,123.9,9.40371743]
[1766715863111,17.47148669,123.95,123.9,10.06371743]
[1766715863529,17.47148669,123.95,123.9,0.66]
[1766715863824,17.47148669,123.95,123.89,10.06371743]
[1766715863825,9.40371743,123.94,123.89,10.06371743]
[1766715864024,17.47148669,123.95,123.89,9.40371743]
[1766715864211,9.40371743,123.95,123.9,10.06371743]
[1766715864526,8.64733243,123.96,123.9,0.66]
[1766715864833,17.471538,123.95,123.9,10.06371743]
[1766715865520,17.471538,123.95,123.9,0.66]
[1766715865720,17.471538,123.95,123.87,11.09767296]
[1766715865721,9.40371743,123.93,123.87,11.09767296]
[1766715865931,9.98371743,123.94,123.89,9.40371743]
[1766715866228,9.98371743,123.94,123.88,0.66]
[1766715866426,9.98371743,123.94,123.88,10.06371743]
[1766715866630,9.98371743,123.92,123.85,0.66]
[1766715866930,28.23724372,123.95,123.87,0.66]
[1766715866931,17.4729637,123.93,123.87,0.66]
[1766715867128,32.33776926,123.95,123.9,10.06371743]
[1766715867330,32.33776926,123.95,123.89,9.40371743]
[1766715867513,9.40371743,123.94,123.89,10.06371743]
[1766715868028,32.91776926,123.95,123.89,0.66]
[1766715868029,9.40371743,123.93,123.89,0.66]
[1766715868234,9.40371743,123.94,123.89,0.66]
[1766715868528,53.08719241,123.95,123.88,9.40371743]
[1766715868529,9.40371743,123.93,123.88,9.40371743]
[1766715868729,17.47308154,123.93,123.88,9.40371743]
[1766715869040,17.47308154,123.93,123.88,0.66]
[1766715869206,9.40371743,123.92,123.88,0.66]
[1766715869411,9.40371743,123.91,123.86,10.43767296]
[1766715869729,9.40371743,123.91,123.86,20.50139039]
[1766715870124,0.58,123.9,123.84,9.40371743]
[1766715870435,9.98371743,123.9,123.84,18.13843308]
[1766715870633,9.40371743,123.89,123.84,10.06371743]
[1766715870828,8.07167648,123.89,123.84,10.06371743]
[1766715871018,14.72,123.92,123.88,9.40371743]
[1766715871338,15.3,123.92,123.87,10.43767296]
[1766715871518,9.40371743,123.91,123.87,10.43767296]
[1766715871711,24.70371743,123.92,123.87,10.43767296]
[1766715871918,24.70371743,123.92,123.87,19.84139039]
[1766715872116,24.70371743,123.92,123.87,9.40371743]
[1766715872326,9.40371743,123.91,123.86,10.06371743]
[1766715872629,9.98371743,123.9,123.85,9.40371743]
[1766715872833,18.05495882,123.9,123.85,9.40371743]
[1766715873337,18.05495882,123.9,123.84,0.66]
[1766715873542,18.05495882,123.9,123.82,8.73612899]
[1766715873543,9.40371743,123.88,123.82,8.73612899]
[1766715873842,52.51880394,123.9,123.86,9.40371743]
[1766715873843,14.72,123.9,123.86,9.40371743]
[1766715874715,14.72,123.9,123.85,8.73408882]
[1766715874907,14.72,123.9,123.86,8.73355673]
[1766715875110,14.72,123.9,123.88,9.40371743]
[1766715875939,32.77229385,123.94,123.89,9.40371743]
[1766715876128,32.77229385,123.94,123.88,9.40371743]
[1766715876437,0.58,123.99,123.91,10.43767296]
[1766715876617,9.98371743,123.97,123.9,11.09767296]
[1766715876815,8.64668025,123.97,123.91,9.40371743]
[1766715877014,9.40371743,123.96,123.91,10.06371743]
[1766715877237,0.58,123.97,123.91,0.66]
[1766715877546,9.40371743,123.96,123.91,10.06371743]
[1766715877845,14.72,123.97,123.91,0.66]
[1766715878138,24.70371743,123.97,123.91,10.06371743]
[1766715878339,18.05047059,123.97,123.91,0.66]
[1766715878634,9.40371743,123.96,123.91,10.06371743]
[1766715878840,18.05047059,123.97,123.91,0.66]
[1766715879221,9.40371743,123.96,123.91,10.06371743]
[1766715879539,9.40371743,123.95,123.91,0.66]
[1766715879739,9.98371743,123.95,123.89,9.40371743]
[1766715879932,9.40371743,123.93,123.88,11.09767296]
[1766715880122,9.40371743,123.92,123.88,0.66]
[1766715880571,9.40371743,123.9,123.85,9.40371743]
[1766715880752,9.40371743,123.89,123.83,0.66]
[1766715880938,18.05549134,123.89,123.83,10.06371743]
[1766715881356,9.40371743,123.88,123.83,10.06371743]
[1766715882163,9.40371743,123.87,123.83,0.66]
[1766715882365,9.40371743,123.86,123.81,0.66]
[1766715882559,9.40371743,123.83,123.79,0.2]
[1766715882930,9.40371743,123.84,123.79,9.60371743]
[1766715883129,14.72,123.86,123.83,9.40371743]
[1766715883365,9.40371743,123.88,123.83,9.40371743]
[1766715883533,9.40371743,123.88,123.83,10.06371743]
[1766715883862,17.47604538,123.89,123.84,9.40371743]
[1766715884034,9.40371743,123.89,123.83,0.66]
[1766715884432,9.40371743,123.89,123.84,9.40371743]
[1766715884934,17.47552593,123.89,123.84,9.40371743]
[1766715885132,8.6518085,123.89,123.84,9.40371743]
[1766715885333,18.05552593,123.89,123.84,9.40371743]
[1766715885544,18.05552593,123.89,123.83,8.73558718]
[1766715885744,18.05552593,123.89,123.83,9.40371743]
[1766715885745,9.98371743,123.88,123.83,9.40371743]
[1766715886039,9.40371743,123.87,123.82,10.10371743]
[1766715886438,9.98371743,123.86,123.81,9.40371743]
[1766715886648,28.83099971,123.89,123.82,0.7]
[1766715886868,9.40371743,123.87,123.82,10.10371743]
[1766715887037,8.65264946,123.88,123.82,10.10371743]
[1766715887232,9.40371743,123.86,123.8,8.77735267]
[1766715887440,9.98371743,123.87,123.82,9.40371743]
[1766715887740,9.40371743,123.86,123.81,10.10371743]
[1766715887959,9.40371743,123.84,123.79,20.04139039]
[1766715888158,9.40371743,123.84,123.79,28.81951417]
[1766715888467,9.40371743,123.84,123.79,0.2]
[1766715888668,9.40371743,123.83,123.79,0.2]
[1766715889157,38.99,123.85,123.8,9.40371743]
[1766715889158,32.19809182,123.85,123.8,9.40371743]
[1766715889353,9.40371743,123.84,123.79,0.9]
[1766715889555,9.40371743,123.84,123.8,9.40371743]
[1766715889778,9.40371743,123.81,123.79,0.2]
[1766715890061,9.98371743,123.83,123.79,0.2]
[1766715890483,9.40371743,123.82,123.79,0.2]
[1766715891045,9.40371743,123.81,123.79,0.1]
[1766715891274,9.40371743,123.81,123.76,19.84139039]
[1766715891587,9.40371743,123.82,123.77,20.54139039]
[1766715891742,32.57887139,123.84,123.79,9.40371743]
[1766715891948,9.40371743,123.83,123.79,10.10371743]
[1766715892448,9.40371743,123.83,123.79,0.7]
[1766715892865,9.40371743,123.83,123.79,10.10371743]
[1766715893045,17.47943421,123.83,123.79,9.40371743]
[1766715893369,17.47943421,123.83,123.78,9.40371743]
[1766715893574,17.47943421,123.83,123.78,10.10371743]
[1766715894157,9.40371743,123.82,123.78,10.10371743]
[1766715894848,8.07571678,123.83,123.78,10.10371743]
[1766715895054,9.40371743,123.82,123.78,10.10371743]
[1766715895461,9.40371743,123.82,123.78,0.7]
[1766715895662,9.40371743,123.82,123.78,10.10371743]
[1766715896555,9.40371743,123.82,123.78,18.18248048]
[1766715896765,17.47934765,123.83,123.78,10.10371743]
[1766715897173,17.47934765,123.83,123.78,0.7]
[1766715897469,9.40371743,123.81,123.77,10.10371743]
[1766715897786,14.72,123.84,123.79,10.10371743]
[1766715898099,9.40371743,123.82,123.79,0.7]
[1766715898373,23.17509306,123.84,123.78,0.7]
[1766715898581,9.40371743,123.83,123.78,0.7]
[1766715898889,23.17509306,123.84,123.77,8.0794622]
[1766715898890,14.72,123.84,123.81,10.10371743]
[1766715899060,17.47774948,123.86,123.82,9.40371743]
[1766715899249,0.38,123.88,123.81,0.7]
[1766715899250,14.72,123.87,123.81,0.7]
[1766715899449,14.72,123.87,123.84,9.40371743]
[1766715899668,24.12371743,123.87,123.83,10.10371743]
[1766715899867,14.72,123.87,123.84,9.40371743]
[1766715900065,14.72,123.87,123.84,10.10371743]
[1766715900582,20.17510209,123.92,123.85,9.40371743]
[1766715900583,23.17112797,123.9,123.85,9.40371743]
[1766715900878,8.4492782,123.93,123.88,9.40371743]
[1766715901088,14.72,123.93,123.9,9.40371743]
[1766715901284,0.38,123.95,123.89,0.7]
[1766715901601,0.1,123.96,123.93,9.40371743]
[1766715901753,0.1,124.01,123.96,0.7]
[1766715901955,0.1,124.01,123.94,0.7]
[1766715901956,0.48,124.01,123.94,0.7]
[1766715902484,0.48,124.01,123.95,10.10371743]
[1766715902658,0.48,124.01,123.95,18.17122713]
[1766715902862,0.1,124.01,123.96,0.7]
[1766715903060,9.40371743,123.99,123.92,10.43767296]
[1766715903273,0.38,124.0,123.91,0.7]
[1766715903475,0.38,123.98,123.91,0.7]
[1766715903676,8.06646769,123.97,123.92,10.10371743]
[1766715903877,9.40371743,123.94,123.89,8.07162868]
[1766715904196,22.78568503,123.99,123.92,0.7]
[1766715904369,9.40371743,123.97,123.93,0.7]
[1766715904580,14.72,123.99,123.93,0.7]
[1766715904781,0.1,124.01,123.96,0.7]
[1766715904979,0.38,124.0,123.93,0.7]
[1766715905186,0.38,123.99,123.93,0.7]
[1766715905673,8.16413966,124.01,123.94,17.47213763]
[1766715905998,8.16413966,124.01,123.96,0.7]
[1766715905999,9.40371743,123.99,123.96,0.7]
[1766715906171,8.16405131,124.01,123.92,30.61197896]
[1766715906172,8.16405131,124.01,123.93,8.06864238]
[1766715906368,8.16405131,124.01,123.94,0.7]
[1766715906574,9.40371743,123.97,123.94,0.7]
[1766715906874,0.38,124.0,123.94,0.7]
[1766715907075,28.32371585,124.01,123.96,10.43767296]
[1766715907076,0.1,124.01,123.96,10.43767296]
[1766715907407,0.1,124.01,123.97,0.7]
[1766715907902,0.1,124.01,123.98,0.7]
[1766715908105,9.50371743,124.01,123.98,0.7]
[1766715908393,0.1,124.01,123.98,0.7]
[1766715908600,40.29776142,124.08,123.98,0.7]
[1766715908601,14.72,124.07,123.98,0.7]
[1766715908777,14.72,124.09,123.98,0.7]
[1766715908976,14.72,124.09,124.02,0.7]
[1766715909498,9.40371743,124.03,123.98,0.7]
[1766715909696,9.40371743,124.03,123.93,21.67934113]
[1766715909697,14.72,124.09,124.01,0.7]
[1766715909904,23.2590441,124.09,124.01,0.7]
[1766715910196,23.2590441,124.09,124.0,8.06451612]
[1766715910197,14.72,124.09,124.0,8.06451612]
[1766715910504,14.72,124.09,124.02,0.7]
[1766715910671,22.77867483,124.09,124.02,0.7]
[1766715910875,9.40371743,124.03,123.99,0.7]
[1766715911074,42.92551125,124.09,123.99,0.7]
[1766715911281,0.48,124.08,123.99,0.7]